Workbook

Sheet Problem4
A1: Parameter | B1: Value | C1: Formula
A2: MTTF | B2: =8760*1.5 -> 13140
A3: alpha | B3: 3
A4: CPM | B4: 8000
A5: CCM | B5: 15000
A6: CU | B6: 10000
A7: CT | B7: 75000
A8: MDT | B8: 16
A9: C_F | B9: =C_CM+C_U*MDT+C_T -> 250000 | C9: =_xlfn.FORMULATEXT(B9) -> =C_CM+C_U*MDT+C_T
A12: 4a) | B12: Cost. Eq
B14: We can solve the task by (i) deriving the cost equation C(τ) wrt to the interval, τ, setting the derivative equal to 0, and then solving in terms of τ, (ii) using a numerical minimization routine, e.g., the Solver in Excel, or (iii) creating a plot for C(τ), and finding the minimum.
A18: 4b)
A19: tau | B19: =MTTF/_xlfn.GAMMA(1+1/alpha)*(C_PM/((alpha-1)*(C_CM+MDT*C_U+C_T)))^(1/alpha) -> 3707.893044 | C19: =_xlfn.FORMULATEXT(B19) -> =MTTF/GAMMA(1+1/alpha)*(C_PM/((alpha-1)*(C_CM+MDT*C_U+C_T)))^(1/alpha)
B21: The downtime, D, is exponentially distributed with parameter 1/MDT. Then the probability that D is > 20 is given as 1-Pr(D <=20) = 1 - FD(20)
A24: 4c)
A25: tau_B | B25: 20 | C25: Buffer size
A26: Pr(D>20) | B26: =EXP(-tau_B/MDT) -> 0.2865047969 | C26: =_xlfn.FORMULATEXT(B26) -> =EXP(-tau_B/MDT)
A27: MDT|Empty | B27: =MDT -> 16 | C27: Since downtime is exponentially distributed, we do not have "memory" after the tank is emtpy, i.e. we still have MDT=16
A29: 4d)
A30: C_0 | B30: 1000 | C30: Baseline cost
A31: C_tau_B | B31: 250 | C31: Cost per hour capacity installed
B32: The cost equation with buffer changes. We calculate p(buffer size)=Pr(Empty buffer) for buffer size 20 and 30. Then, the cost equation is modified by multiplying the cost element (C_U*MDT+C_T) with p, i.e., p(buffer size)*(C_U*MDT+C_T). Then we optimize to find the optimal t for this buffer size 20 and 30 respectively. For each of these t values, we calculate the effective failure rate, and then the cost equation. For the cost equation, we add the cost of the buffer depending on the size of the buffer.
A38: Buffer=20:
A39: tau_20 | B39: =MTTF/_xlfn.GAMMA(1+1/alpha)*(C_PM/((alpha-1)*(C_CM+EXP(-20/MDT)*(MDT*C_U+C_T))))^(1/alpha) -> 5369.373022 | C39: =_xlfn.FORMULATEXT(B39) -> =MTTF/GAMMA(1+1/alpha)*(C_PM/((alpha-1)*(C_CM+EXP(-20/MDT)*(MDT*C_U+C_T))))^(1/alpha)
A40: lambda_E(tau_20) | B40: =(_xlfn.GAMMA(1+1/alpha)/MTTF)^alpha*tau_20^(alpha-1) -> 4.315119075e-06 | C40: =_xlfn.FORMULATEXT(B40) -> =(GAMMA(1+1/alpha)/MTTF)^alpha*tau_20^(alpha-1)
A41: C(tau_20,tau_B=20) | B41: =C_PM/tau_20+lambda_E_tau_20*(C_CM+EXP(-20/MDT)*(C_U*MDT+C_T))+C_0/8760+C_tau_B*20/8760 -> 3.197748874 | C41: =_xlfn.FORMULATEXT(B41) -> =C_PM/tau_20+lambda_E_tau_20*(C_CM+EXP(-20/MDT)*(C_U*MDT+C_T))+C_0/8760+C_tau_B*20/8760
A42: (per year) | B42: =B41*8760 -> 28012.28014
A44: Buffer=30:
A45: tau_30 | B45: =MTTF/_xlfn.GAMMA(1+1/alpha)*(C_PM/((alpha-1)*(C_CM+EXP(-30/MDT)*(MDT*C_U+C_T))))^(1/alpha) -> 6297.112737 | C45: =_xlfn.FORMULATEXT(B45) -> =MTTF/GAMMA(1+1/alpha)*(C_PM/((alpha-1)*(C_CM+EXP(-30/MDT)*(MDT*C_U+C_T))))^(1/alpha)
A46: lambda_E(tau_20) | B46: =(_xlfn.GAMMA(1+1/alpha)/MTTF)^alpha*tau_30^(alpha-1) -> 1.244575723e-05 | C46: =_xlfn.FORMULATEXT(B46) -> =(GAMMA(1+1/alpha)/MTTF)^alpha*tau_30^(alpha-1)
A47: C(tau_20,tau_B=20) | B47: =C_PM/tau_30+lambda_E_tau_30*(C_CM+EXP(-30/MDT)*(C_U*MDT+C_T))+C_0/8760+C_tau_B*30/8760 -> 2.875954884 | C47: =_xlfn.FORMULATEXT(B47) -> =C_PM/tau_30+lambda_E_tau_30*(C_CM+EXP(-30/MDT)*(C_U*MDT+C_T))+C_0/8760+C_tau_B*30/8760
A48: (per year) | B48: =B47*8760 -> 25193.36478
B50: The cost is lower for buffer size 30 comparred to buffer size 20
